[Event "37th Magistral de Leon 2024"]
[Site "Leon"]
[Date "2024.06.28"]
[Round "1.1"]
[White "Topalov, Veselin"]
[Black "Anand, Viswanathan"]
[Result "1/2-1/2"]
[ECO "C26"]
[WhiteElo "2727"]
[BlackElo "2751"]
[Annotator "TA"]
[PlyCount "120"]
[EventDate "2024.06.28"]
[EventCountry "ESP"]
[SourceTitle "playchess.com"]
[Source "ChessBase"]
[SourceQuality "1"]
[TimeControl "1200+10"]

{[%evp 62,120,0,-82,-76,-85,0,-213,-203,-232,-79,-245,-169,-164,-119,-118,-75,-70,-80,-80,-63,-98,0,-79,-70,-68,-79,-71,-8,-58,-57,-48,-12,-12,0,0,0,8,0,8,2,0,0,0,0,0,8,8,8,8,14,0,0,0,77,0,0,-24,0,0,8]} 1. e4 {[%emt 0:00:04]} e5 {[%emt 0:00:03]} 2. Nc3 {[%emt 0:00:02]} Nf6 {[%emt 0:00:04]} 3. d4 {[%emt 0:00:02]} exd4 4. Qxd4 {[%emt 0:00:02]} Nc6 {[%emt 0:00:13]} 5. Qd3 {[%emt 0:00:02]} Bc5 {[%emt 0:00:50]} 6. Qg3 {[%emt 0:00:02]} d6 {[%emt 0:00:41]} 7. Be3 {[%emt 0:00:20]} Bxe3 {[%emt 0:01:55]} 8. Qxe3 {[%emt 0:00:02]} O-O {[%emt 0:00:07]} 9. O-O-O {[%emt 0:00:05]} Re8 {[%emt 0:00:48]} 10. f3 {[%emt 0:00:54]} a6 {[%emt 0:00:12]} 11. Nge2 {[%emt 0:00:12]} b5 {[%emt 0:00:37]} 12. Nf4 {[%emt 0:00:17]} Ne5 {[%emt 0:01:06]} 13. Be2 {[%emt 0:01:18]} b4 {[%emt 0:01:18]} 14. Ncd5 {[%emt 0:00:04]} Nxd5 {[%emt 0:00:06]} 15. Nxd5 {[%emt 0:00:02]} a5 {[%emt 0:00:11]} 16. Kb1 {[%emt 0:00:33]} Bb7 {[%emt 0:00:46]} 17. Rd2 {[%emt 0:02:38]} Nd7 {[%emt 0:01:44]} 18. Qf4 {[%emt 0:01:50]} Bxd5 {[%emt 0:00:53]} 19. Rxd5 {[%emt 0:00:01]} Qe7 {[%emt 0:00:39]} 20. Rhd1 {[%emt 0:01:19]} Ne5 {[%emt 0:00:15]} 21. Qd2 {[%emt 0:00:23]} Qh4 {[%emt 0:00:48]} 22. f4 {[%emt 0:01:21]} Ng6 {[%emt 0:00:08]} 23. Bb5 {[%emt 0:00:15]} Rxe4 {[%emt 0:01:26]} 24. Bc6 {[%emt 0:00:07]} Ra7 {[%emt 0:01:21]} 25. Rb5 {[%emt 0:01:12]} Re7 {[%emt 0:00:07]} 26. Rb8+ {[%emt 0:00:34]} Nf8 {[%emt 0:00:03]} 27. g3 {[%emt 0:00:16]} Qh5 {[%emt 0:00:50]} 28. Re1 {[%emt 0:00:17]} Re6 {[%emt 0:00:21]} 29. Bd7 {[%emt 0:01:46]} Rxe1+ {[%emt 0:01:14]} 30. Qxe1 {[%emt 0:00:02]} g6 {[%emt 0:00:02]} 31. b3 {[%emt 0:02:22]} Kg7 {[%emt 0:00:46]} 32. Bb5 {[%emt 0:02:50]} (32. g4 $11 Qh3 (32... Qxh2 33. Qe8 $11) 33. Bf5 Qxh2 (33... gxf5 34. Qe8 $11) 34. Qe8 Qg1+ 35. Kb2 Qd4+ 36. Kb1 Qg1+ 37. Kb2 Qd4+ 38. Kb1 Qg1+) 32... Ne6 $1 $17 {[%emt 0:00:34]} (32... Qxh2 $6 33. Qe8 Ne6 (33... Qg1+ 34. Kb2 $11) 34. a4 (34. Qg8+ Kh6 $17) 34... Qxg3 (34... bxa3 35. f5 $19) 35. f5 $11) 33. Bc4 {[%emt 0:00:21]} d5 {[%emt 0:00:23]} (33... Qxh2 $6 34. Bxe6 fxe6 35. Re8 $11) (33... c5 $1 $17 34. Rb6 (34. Bxe6 Re7 $17) 34... Nd4 (34... Qxh2 35. Rxd6 Nd4 36. Qe5+ Kh6 37. Rxg6+ fxg6 38. Qg5+ Kg7 39. Qe5+ Kh6 40. Qg5+ Kg7 41. Qe5+ Kh6 $11) (34... d5 35. Be2 $15) 35. Rxd6 Re7) 34. g4 $2 {[%emt 0:00:43]} (34. Bd3 $11 Nc5 (34... Qxh2 $2 35. f5 $18) 35. Bxg6 Qxg6 (35... hxg6 $2 36. g4 $18) 36. Qe5+ Kh6 37. f5) 34... Qxg4 $19 {[%emt 0:00:15]} (34... Qxh2 35. Bxd5 Nxf4 36. Qe5+ Kh6 37. g5+ Kh5 38. Bf3+ Kh4 39. Rd8 $18 (39. Qc5 $2 Ra6 $19)) 35. Bxd5 {[%emt 0:00:02] [#]} Nxf4 $2 {[%emt 0:00:43]} (35... Qxf4 36. Bxe6 c5 (36... fxe6 37. Qxe6 Qf1+ 38. Kb2 $19) 37. Re8 fxe6 38. Qxe6) (35... Ra6 $1 $19 {is more deadly.} 36. Qe5+ Kh6) 36. Qe5+ $2 {[%emt 0:02:15]} (36. Bxf7 $17 Ne2 (36... Kxf7 37. Qe8+ Kf6 38. Qf8+ Kg5 39. Qc5+ Kh6 40. Qxa7 $15) 37. Bc4 Nc3+ 38. Kb2) 36... Kh6 {[%emt 0:00:12]} 37. Bxf7 {[%emt 0:00:39]} c5 {[%emt 0:00:29]} 38. Bc4 {[%emt 0:00:02]} Qg5 {[%emt 0:01:52]} (38... Rd7 {feels hotter.} 39. Qxc5 Qd1+ 40. Kb2 Rd2) 39. Re8 {[%emt 0:00:19]} Qxe5 40. Rxe5 {[%emt 0:00:02]} Rc7 {[%emt 0:00:27]} 41. a3 {[%emt 0:00:01]} Nh5 {[%emt 0:00:08]} ({But not} 41... bxa3 $6 42. Ka2 $11) (41... g5 $17 42. c3 bxa3 (42... bxc3 43. Kc2 $17)) 42. axb4 {[%emt 0:00:01]} (42. Be2 $11) 42... axb4 $17 {[%emt 0:00:01]} 43. c3 {[%emt 0:00:05]} bxc3 {[%emt 0:00:03]} 44. Kc2 {[%emt 0:00:00]} Nf6 {[%emt 0:00:02]} ({Better is} 44... Kg7 $17) 45. h3 {[%emt 0:00:05]} (45. Be2 $11) 45... Nh5 $15 {[%emt 0:00:07]} ({Don't blunder} 45... Nd7 $2 46. Re7 $18) 46. Kxc3 {[%emt 0:00:03]} Nf4 {[%emt 0:00:01]} 47. Bf1 {[%emt 0:00:06]} Rd7 {[%emt 0:00:04]} 48. Rxc5 {[%emt 0:00:10]} Rd1 {[%emt 0:00:01]} 49. Bc4 {[%emt 0:00:03]} Nxh3 {[%emt 0:00:02]} 50. b4 {[%emt 0:00:01]} Nf2 {[%emt 0:00:08]} 51. Rc7 {[%emt 0:00:10]} Ne4+ {[%emt 0:00:03]} 52. Kc2 {[%emt 0:00:08]} Rd4 {[%emt 0:00:39]} 53. b5 {[%emt 0:00:02]} Nd6 {[%emt 0:00:12]} 54. Bd3 {[%emt 0:00:28]} Rb4 {[%emt 0:00:10]} 55. Rc5 {[%emt 0:00:04]} Ne4 {[%emt 0:00:22]} 56. Rc6 {[%emt 0:00:13]} Kg5 {[%emt 0:00:08]} 57. b6 {[%emt 0:00:03]} Nf6 {[%emt 0:00:10] [#]} (57... Kf5 $11) 58. Kd2 {[%emt 0:00:13]} (58. Rc5+ $1 $16 Kf4 59. Rb5) 58... Nd7 {[%emt 0:00:22]} 59. Rc7 {[%emt 0:00:01]} Ne5 {[%emt 0:00:07]} 60. Rc5 {[%emt 0:00:53]} Rxb6 (60... Kf4 $5 61. Bb5 $8 Rd4+ 62. Kc3 Rd6 $11) 1/2-1/2

[Event "37th Magistral de Leon 2024"]
[Site "Leon"]
[Date "2024.06.29"]
[Round "1.1"]
[White "Santos Latasa, Jaime"]
[Black "Erigaisi Arjun"]
[Result "1/2-1/2"]
[ECO "B76"]
[WhiteElo "2626"]
[BlackElo "2761"]
[Annotator "TA"]
[PlyCount "93"]
[EventDate "2024.06.28"]
[EventCountry "ESP"]
[SourceTitle "playchess.com"]
[Source "ChessBase"]
[SourceQuality "1"]
[TimeControl "1200+10"]

{[%evp 19,93,23,20,25,36,24,20,18,12,0,33,0,41,7,63,60,58,73,70,65,128,125,116,116,164,162,162,105,95,83,98,56,116,109,173,174,175,177,168,57,51,52,48,53,57,52,55,27,29,5,5,5,5,6,5,5,8,0,0,0,0,0,0,0,0,0,0,0,0,0,0,0,0,0,0,0]} 1. e4 {[%emt 0:00:02]} c5 {[%emt 0:00:04]} 2. Nf3 {[%emt 0:00:02]} Nc6 {[%emt 0:00:02]} 3. Nc3 {[%emt 0:00:09]} g6 {[%emt 0:00:02]} 4. d4 cxd4 {[%emt 0:00:03]} 5. Nxd4 {[%emt 0:00:08]} Bg7 {[%emt 0:00:01]} 6. Be3 {[%emt 0:00:15]} Nf6 {[%emt 0:00:04]} 7. Bc4 {[%emt 0:00:23]} O-O {[%emt 0:00:06]} 8. Bb3 {[%emt 0:00:04]} d6 {[%emt 0:00:13]} 9. f3 {[%emt 0:00:21]} Bd7 {[%emt 0:00:04]} 10. h4 {[%emt 0:01:26]} h5 {[%emt 0:00:06]} 11. Qd2 {[%emt 0:00:11]} Ne5 {[%emt 0:00:07]} 12. Bh6 {[%emt 0:00:57]} (12. O-O-O {simplifies} Rc8 13. Kb1 Nc4 14. Bxc4 Rxc4 15. Rhe1) 12... Rc8 {[%emt 0:00:03]} 13. Bxg7 {[%emt 0:00:42]} Kxg7 {[%emt 0:00:03]} 14. O-O-O {[%emt 0:00:07]} Nc4 {[%emt 0:00:04]} 15. Qd3 {[%emt 0:01:57]} Na5 {[%emt 0:01:07]} 16. Kb1 {[%emt 0:00:21]} (16. Qe3 {seems wilder.} Rc5 17. Kb1 Qc7 18. g4) 16... Rc5 {[%emt 0:01:09]} (16... Nxb3 $11 17. Nxb3 (17. axb3 Qa5 $11) 17... Qb6) 17. Rhe1 $14 {[%emt 0:00:52]} Re8 {[%emt 0:04:13]} 18. f4 {[%emt 0:05:59] Black must now prevent e5.} Ng4 {[%emt 0:04:05]} 19. Qd2 {[%emt 0:00:16][%cal Oe4e5]} Nc4 {[%emt 0:03:29]} ({Better is} 19... Nxb3 $14 20. Nxb3 Rc8) 20. Bxc4 $16 {[%emt 0:00:17]} Rxc4 {[%emt 0:00:02]} 21. e5 {[%emt 0:02:00]} Qc8 {[%emt 0:00:13]} (21... Bc6 $16 {keeps fighting.}) 22. exd6 $18 {[%emt 0:00:15]} exd6 {[%emt 0:00:02]} 23. Rxe8 {[%emt 0:00:27]} (23. f5 $1 $18 {[%cal Rf5g6]}) 23... Qxe8 $16 {[%emt 0:00:09]} 24. Re1 {[%emt 0:00:36] Prevents Qe3} Qd8 {[%emt 0:00:02]} 25. g3 {[%emt 0:00:16]} Qf6 {[%emt 0:03:52]} ({Black should try} 25... Nf6 $14) 26. Rd1 {[%emt 0:01:00]} a6 {[%emt 0:00:39]} (26... Bc6 $16) 27. b3 $1 $18 {[%emt 0:00:59]} Rc8 {[%emt 0:00:23] [#]} 28. Ne4 $1 {[%emt 0:01:38]} Qe7 {[%emt 0:00:03] [#]} 29. Re1 {[%emt 0:00:22]} ({White has to play} 29. Nxd6 $1 $18 Qxd6 30. Nf5+ Bxf5 31. Qxd6 Bxc2+ 32. Kb2 Bxd1 33. Qxd1) 29... d5 $1 $14 {[%emt 0:01:14]} 30. Nf2 {[%emt 0:01:02] A dynamic duo of knights.} Qd6 {[%emt 0:00:41]} 31. Nxg4 Bxg4 {[%emt 0:00:03]} 32. Kb2 {[%emt 0:00:40]} Bd7 {[%emt 0:00:20]} 33. Qe3 {[%emt 0:00:32]} Qf6 {[%emt 0:00:24] Hoping for ...Re8.} 34. Qe5 {[%emt 0:00:14]} Re8 {[%emt 0:00:03] The position is equal.} 35. Qxf6+ {[%emt 0:00:02]} Kxf6 {[%emt 0:00:02]} 36. Rxe8 {[%emt 0:00:02]} Bxe8 $11 {[%emt 0:00:02][%mdl 4096] Endgame. KB-KN} 37. Kc3 {[%emt 0:00:06]} a5 {[%emt 0:00:28]} 38. b4 {[%emt 0:00:37]} axb4+ {[%emt 0:00:17]} 39. Kxb4 {[%emt 0:00:02] Threatens to win with Kc5.} b6 {[%emt 0:00:02]} 40. a4 {[%emt 0:00:10]} Bd7 {[%emt 0:00:21]} 41. a5 {[%emt 0:00:05]} bxa5+ {[%emt 0:00:03]} 42. Kxa5 {[%emt 0:00:01]} Ke7 {[%emt 0:00:28]} 43. Kb4 {[%emt 0:00:41] And now Kc5 would win.} Kd6 {[%emt 0:00:07]} 44. Kc3 {[%emt 0:00:18]} Bg4 {[%emt 0:00:22]} 45. Kd3 {[%emt 0:00:15]} Bd7 {[%emt 0:00:14]} 46. Kc3 {[%emt 0:00:16]} Bg4 {[%emt 0:00:05]} 47. Kd3 {[%emt 0:00:55] White really could win this.   Weighted Error Value: White=0.11 (very precise) /Black=0.15 (very precise) .  Mistake:       	White=2     	Black=5      Inaccurate:     	White=4     	Black=2      OK:         	White=18    	Black=14     Best:        	White=2     	---        Strong:       	---       	Black=1} 1/2-1/2

[Event "37th Magistral de Leon 2024"]
[Site "Leon"]
[Date "2024.06.29"]
[Round "1.2"]
[White "Erigaisi Arjun"]
[Black "Santos Latasa, Jaime"]
[Result "1-0"]
[ECO "E11"]
[WhiteElo "2761"]
[BlackElo "2626"]
[Annotator "TA"]
[PlyCount "59"]
[EventDate "2024.06.28"]
[EventCountry "ESP"]
[SourceTitle "playchess.com"]
[Source "ChessBase"]
[SourceQuality "1"]
[TimeControl "1200+10"]

{[%evp 15,59,12,16,-8,0,0,0,0,0,0,0,0,22,0,0,0,20,8,18,12,154,162,157,139,218,213,268,288,287,316,381,381,413,409,631,662,668,674,726,709,939,903,913,923,1117,1028]} 1. d4 {[%emt 0:00:03]} Nf6 {[%emt 0:00:02]} 2. c4 {[%emt 0:00:01]} e6 {[%emt 0:00:01]} 3. Nf3 {[%emt 0:00:02]} d5 {[%emt 0:00:02]} 4. g3 {[%emt 0:00:02]} Bb4+ {[%emt 0:00:24]} 5. Bd2 {[%emt 0:00:02]} Be7 {[%emt 0:00:01]} 6. Bg2 {[%emt 0:00:03]} c6 {[%emt 0:00:02]} 7. O-O {[%emt 0:00:12]} O-O {[%emt 0:00:03]} 8. Qc2 {[%emt 0:00:10]} Nbd7 {[%emt 0:00:03]} 9. b4 {[%emt 0:00:08]} b6 {[%emt 0:00:30]} 10. a4 {[%emt 0:00:04]} a5 {[%emt 0:00:45]} 11. bxa5 {[%emt 0:00:20] The position is equal.} bxa5 {[%emt 0:00:02]} 12. c5 {[%emt 0:00:02]} Ne4 {[%emt 0:00:30]} 13. Be3 {[%emt 0:00:47]} Ba6 {[%emt 0:00:10]} 14. Nbd2 {[%emt 0:00:10][%cal Bb1d2,Bd2b3,Bb3d4,Bd4f5,Bf5d6][%mdl 32]} f5 {[%emt 0:00:45]} 15. Nb3 {[%emt 0:00:03]} Bf6 {[%emt 0:01:08]} 16. Rab1 {[%emt 0:01:04]} Rb8 {[%emt 0:00:56]} 17. Bd2 {[%emt 0:01:08] Repels Rb4} Qc7 {[%emt 0:05:24] [#]} (17... Nxd2 $11 {remains equal.} 18. Qxd2 Ra8 (18... Rb4 19. Nxa5 Rxb1 20. Rxb1 $16)) 18. Bf4 $1 $16 {[%emt 0:01:17]} (18. Bxa5 Qa7 $14) (18. Nxa5 Bxe2 19. Bf4 Qxa5 $15) 18... e5 {[%emt 0:00:28]} 19. dxe5 Nxe5 {[%emt 0:00:02] [#]} (19... g5 $16) 20. Nbd4 $1 $18 {[%emt 0:00:05] Nxe5 would now be deadly.} Rxb1 {[%emt 0:02:29]} 21. Rxb1 {[%emt 0:00:02]} Re8 {[%emt 0:00:05] Prevents Ne6.} 22. Nxf5 {[%emt 0:00:53]} Bc8 {[%emt 0:03:41]} 23. N3d4 {[%emt 0:01:27][%cal Bf3d4,Bd4e6,Be6f8][%mdl 32]} g5 {[%emt 0:01:31]} 24. Bxe4 {[%emt 0:00:03]} gxf4 {[%emt 0:00:33]} (24... dxe4 $142 25. Nd6 Re7) 25. Nd6 {[%emt 0:00:02] A dynamic duo of knights. White is clearly winning.} Rf8 {[%emt 0:00:05]} 26. Bf5 {[%emt 0:00:06]} fxg3 {[%emt 0:00:39] Black is weak on the light squares} 27. hxg3 {[%emt 0:00:02]} (27. Nxc8 gxf2+ 28. Kxf2 Ng4+ 29. Ke1 Qg7 $17 (29... Bxd4 $2 30. Bxg4 Qg7 31. Bf3 $19) (29... Qxh2 30. Nf3 $17)) 27... Nc4 {[%emt 0:01:33]} 28. Ne6 {[%emt 0:00:32]} Nxd6 {[%emt 0:00:59]} 29. cxd6 {[%emt 0:00:44]} Qxd6 {[%emt 0:00:21]} 30. Nxf8 {[%emt 0:00:03] Weighted Error Value: White=0.03 (flawless) /Black=0.49.  Mistake:       	---       	Black=3      OK:         	White=8     	Black=4      Best:        	White=2     	Black=1      Strong:       	White=2     	---} 1-0

[Event "37th Magistral de Leon 2024"]
[Site "Leon"]
[Date "2024.06.28"]
[Round "1.2"]
[White "Anand, Viswanathan"]
[Black "Topalov, Veselin"]
[Result "1/2-1/2"]
[ECO "C84"]
[WhiteElo "2751"]
[BlackElo "2727"]
[Annotator "TA"]
[PlyCount "163"]
[EventDate "2024.06.28"]
[EventCountry "ESP"]
[SourceTitle "playchess.com"]
[Source "ChessBase"]
[SourceQuality "1"]
[TimeControl "1200+10"]

{[%evp 73,163,-16,0,-28,-39,-63,-68,-97,-97,-250,0,0,0,0,0,0,0,0,0,0,0,0,0,0,0,-8,-3,-3,-3,-24,-24,-24,-24,-139,-139,-162,-155,-279,-279,-271,-53,-45,-45,-50,-37,-41,-35,-54,-59,-54,-54,-54,75,81,89,52,177,177,208,72,62,68,66,66,66,66,58,58,65,52,52,52,52,52,52,52,52,52,52,52,52,52,52,52,52,52,52,52,52,0,52,52]} 1. e4 {[%emt 0:00:04]} e5 {[%emt 0:00:02]} 2. Nf3 {[%emt 0:00:01]} Nc6 {[%emt 0:00:02]} 3. Bb5 {[%emt 0:00:04]} a6 {[%emt 0:00:01]} 4. Ba4 {[%emt 0:00:01]} Nf6 {[%emt 0:00:02]} 5. O-O {[%emt 0:00:03]} Be7 {[%emt 0:00:03]} 6. d3 {[%emt 0:00:03]} b5 {[%emt 0:00:12]} 7. Bb3 {[%emt 0:00:02]} d6 {[%emt 0:00:01]} 8. c3 {[%emt 0:00:11]} O-O {[%emt 0:00:05]} 9. h3 {[%emt 0:00:08] C84: Closed Ruy Lopez: Unusual White 6th moves.} Nb8 {[%emt 0:00:26]} 10. a4 $1 {[%emt 0:00:47][%mdl 4] is currently scoring better than 10.Re1.} Bb7 {[%emt 0:00:16]} 11. axb5 {[%emt 0:00:05]} axb5 {[%emt 0:00:01]} 12. Rxa8 {[%emt 0:00:03]} Bxa8 {[%emt 0:00:01]} 13. Na3 {[%emt 0:00:03]} Qd7 {[%emt 0:00:55]} 14. Nc2 {[%emt 0:00:49]} Na6 {[%emt 0:00:13]} 15. Ne3 {[%emt 0:00:35]} Nc5 {[%emt 0:00:11]} 16. Ba2 $146 {[%emt 0:00:38]} ({Predecessor:} 16. Bc2 Re8 17. Nf5 Ne6 18. Nxe7+ Qxe7 19. Re1 c5 20. d4 exd4 21. cxd4 Nxd4 22. Nxd4 cxd4 23. Qxd4 {0-1 Suleymanli,A (2588)-Sevian,S (2698) FIDE Grand Swiss 2023 (7)}) 16... g6 {[%emt 0:00:19]} 17. b4 {[%emt 0:00:15]} Ne6 {[%emt 0:00:21]} 18. Re1 {[%emt 0:01:05]} Bb7 {[%emt 0:00:26]} 19. Nd5 {[%emt 0:00:54]} Bd8 {[%emt 0:04:03]} 20. c4 {[%emt 0:00:57]} c6 {[%emt 0:00:38]} 21. Nc3 {[%emt 0:01:11]} bxc4 {[%emt 0:00:10]} 22. dxc4 {[%emt 0:00:38]} c5 {[%emt 0:00:10]} 23. Ba3 {[%emt 0:00:31]} cxb4 {[%emt 0:01:08]} 24. Bxb4 {[%emt 0:00:06]} Bc7 {[%emt 0:00:26]} 25. Nb5 {[%emt 0:01:47]} Rd8 {[%emt 0:01:00]} 26. Bb1 {[%emt 0:00:34]} Bb8 {[%emt 0:00:50]} 27. Nd2 {[%emt 0:01:05]} Bc6 {[%emt 0:00:54]} 28. Nc3 {[%emt 0:01:12]} Qb7 {[%emt 0:00:02]} 29. Ba5 {[%emt 0:01:10]} Bc7 {[%emt 0:00:17]} 30. Bxc7 {[%emt 0:00:07]} Qxc7 {[%emt 0:00:01]} 31. Bd3 {[%emt 0:00:11]} Kg7 {[%emt 0:00:05]} 32. Nd5 {[%emt 0:00:24]} Bxd5 {[%emt 0:00:07]} 33. cxd5 {[%emt 0:00:02]} Nc5 {[%emt 0:00:04]} 34. Bf1 {[%emt 0:00:10]} Rb8 {[%emt 0:00:55]} 35. Qc2 {[%emt 0:00:25]} Qa5 {[%emt 0:00:29]} 36. Rc1 {[%emt 0:00:30]} Qa7 {[%emt 0:01:06]} 37. Kh2 {[%emt 0:00:21]} Rc8 {[%emt 0:01:21]} 38. f3 {[%emt 0:01:01]} Ncxe4 {[%emt 0:01:14]} 39. Qxc8 {[%emt 0:00:02]} Nxd2 {[%emt 0:00:02]} 40. Qc3 {[%emt 0:02:42]} Qf2 {[%emt 0:00:32]} (40... Nxd5 $2 {loses.} 41. Qxd2 Qe3 42. Qxe3 Nxe3 43. Bc4 $18) 41. Bc4 $2 {[%emt 0:00:42] [#]} (41. Qd3 $17) 41... e4 $2 {[%emt 0:04:04]} (41... Nh5 $1 $19 42. Ra1 Nf4) 42. fxe4 $11 {[%emt 0:00:25]} Qf4+ {[%emt 0:00:23]} 43. Kg1 {[%emt 0:00:58]} Ndxe4 {[%emt 0:00:02]} 44. Qe1 {[%emt 0:00:03]} h5 {[%emt 0:00:11]} 45. Bd3 {[%emt 0:00:21]} Nc5 {[%emt 0:00:34]} 46. Bf1 {[%emt 0:00:06]} Nfe4 {[%emt 0:00:47]} 47. Rc4 {[%emt 0:00:30]} f5 {[%emt 0:00:07]} 48. Qe2 {[%emt 0:00:37]} h4 {[%emt 0:00:29]} 49. Qf3 {[%emt 0:00:16]} Qd2 {[%emt 0:00:06]} 50. Qe2 {[%emt 0:00:03]} Qxd5 {[%emt 0:00:20]} 51. Qe1 {[%emt 0:00:14]} g5 {[%emt 0:02:26]} 52. Qe3 {[%emt 0:03:38]} Kf6 {[%emt 0:00:00]} 53. Qd4+ {[%emt 0:00:00]} (53. Qe2 $11) 53... Qxd4+ $17 54. Rxd4 {[%emt 0:00:00]} Ke5 {[%emt 0:00:00]} 55. Rb4 {[%emt 0:00:00]} (55. Rd1 $17) 55... d5 $19 {[%emt 0:00:00]} 56. Rb8 {[%emt 0:00:00]} Ng3 $2 {[%emt 0:00:00]} (56... Kf4 $19 {Strongly threatening ...Ke3.} 57. Ra8 d4) 57. Re8+ $15 {[%emt 0:00:00]} Kd4 {[%emt 0:00:00]} 58. Bb5 {[%emt 0:00:00]} Nce4 {[%emt 0:00:00]} 59. Bc6 {[%emt 0:00:00]} Kc5 {[%emt 0:00:00]} 60. Bb7 {[%emt 0:00:00]} d4 {[%emt 0:00:00]} 61. Ba6 $1 {[%emt 0:00:00]} Kb4 {[%emt 0:00:00]} 62. Rd8 $1 {[%emt 0:00:00]} Nc5 {[%emt 0:00:00]} (62... Kc3 $15 {keeps the upper hand.} 63. Rd5 Nh5) 63. Rxd4+ $16 {[%emt 0:00:00]} Kb3 {[%emt 0:00:03]} 64. Rd6 {[%emt 0:00:00]} Nce4 {[%emt 0:00:46] [#]} (64... Nxa6 $14 65. Rxa6 Kc4) 65. Rc6 $1 $18 {[%emt 0:00:00]} Kb4 {[%emt 0:00:17]} 66. Bd3 {[%emt 0:00:00]} (66. Rc2 $18 {has better winning chances.}) 66... Nc5 $16 {[%emt 0:00:36]} 67. Bb1 {[%emt 0:00:00]} Kc4 $1 {[%emt 0:00:15]} 68. Rd6 {[%emt 0:00:00]} Nce4 {[%emt 0:00:30]} 69. Rd8 {[%emt 0:00:00]} Kc5 {[%emt 0:00:04]} 70. Bd3 {[%emt 0:00:10]} Kc6 $1 {[%emt 0:00:04]} 71. Bxe4+ Nxe4 {[%emt 0:00:02]} 72. Kf1 {[%emt 0:00:42]} Nd6 {[%emt 0:00:05]} 73. Rg8 {[%emt 0:00:23]} Ne4 {[%emt 0:00:01]} 74. Ke2 {[%emt 0:00:03]} Kd6 {[%emt 0:00:01]} 75. Ke3 {[%emt 0:00:06]} Ke5 {[%emt 0:00:05]} 76. Re8+ {[%emt 0:00:16]} Kd5 $1 {[%emt 0:00:02]} 77. Ra8 {[%emt 0:00:05]} Nc5 {[%emt 0:00:24]} 78. Ra5 {[%emt 0:00:10]} Kd6 {[%emt 0:00:01]} 79. Rb5 {[%emt 0:00:19]} Kd5 {[%emt 0:00:02]} 80. Rb8 {[%emt 0:00:03]} Ne6 {[%emt 0:00:09]} 81. Ra8 {[%emt 0:00:09]} (81. Kf3 $14) 81... Ke5 {[%emt 0:00:06]} (81... Nc5 $1 $11) 82. Ra5+ {[%emt 0:00:16]} 1/2-1/2